bitfinex/quotes_SOLUSD_20250403
["timestamp","ask_amount","ask_price","bid_price","bid_amount"]
[1743718350657,0.42648471,117.17,117.16,8.5353]
[1743718350824,0.14216157,117.17,117.16,8.5353]
[1743718351348,0.42648471,117.17,117.16,8.5353]
[1743718351758,0.42648471,117.17,117.15,34.43554687]
[1743718352132,0.42648471,117.17,117.15,8.536]
[1743718355359,0.28432314,117.15,117.13,8.5375]
[1743718355537,0.28432314,117.15,117.13,34.43704687]
[1743718357164,51.4,117.16,117.13,55.78084687]
[1743718357348,0.14216157,117.15,117.14,34.43624687]
[1743718359355,8.10648471,117.17,117.16,26.0]
[1743718359565,7.82216157,117.17,117.16,51.89954687]
[1743718359738,0.14216157,117.17,117.16,51.89954687]
[1743718361561,0.14216157,117.17,117.16,60.43484687]
[1743718362573,0.14216157,117.17,117.16,34.5353]
[1743718362751,0.14216157,117.18,117.16,81.77314687]
[1743718364057,0.14216157,117.17,117.13,29.8813]
[1743718364255,0.14216157,117.17,117.13,8.5375]
[1743718364256,0.42648471,117.15,117.13,8.5375]
[1743718364656,0.42648471,117.15,117.12,8.5378]
[1743718364657,0.28432314,117.13,117.12,8.5378]
[1743718364968,0.28432314,117.13,117.1,25.89954687]
[1743718365173,51.82648471,117.13,117.11,8.5388]
[1743718366053,51.82648471,117.13,117.06,32.12464687]
[1743718366054,0.42648471,117.13,117.1,25.89954687]
[1743718366260,0.14216157,117.13,117.11,25.89954687]
[1743718366867,0.14216157,117.13,117.12,25.89954687]
[1743718368049,136.0,117.16,117.12,55.78334687]
[1743718368350,51.54216157,117.15,117.12,34.43774687]
[1743718368575,0.28432314,117.14,117.12,8.5382]
[1743718370057,51.54216157,117.13,117.12,8.5382]
[1743718370263,71.54216157,117.13,117.12,8.5382]
[1743718370457,59.48648471,117.13,117.12,8.5382]
[1743718370864,8.08648471,117.13,117.12,8.5382]
[1743718371468,0.28432314,117.12,117.11,8.5386]
[1743718381683,7.80216157,117.13,117.11,34.43814687]
[1743718381888,51.4,117.16,117.12,25.89954687]
[1743718382069,0.14216157,117.15,117.14,25.89954687]
[1743718382871,0.14216157,117.16,117.14,25.89954687]
[1743718383075,51.4,117.18,117.15,51.89954687]
[1743718383274,0.14216157,117.17,117.16,25.89954687]
[1743718383492,0.14216157,117.17,117.16,34.43484687]
[1743718383668,0.14216157,117.17,117.16,25.06984038]
[1743718385696,0.14216157,117.17,117.16,34.37240948]
[1743718388492,0.14216157,117.17,117.16,8.5353]
[1743718388789,0.14216157,117.17,117.16,34.37240948]
[1743718390799,0.14216157,117.17,117.16,8.5353]
[1743718391686,0.14216157,117.17,117.16,34.37240948]
[1743718392177,51.4,117.19,117.16,55.71070948]
[1743718392499,0.14216157,117.18,117.17,25.83710948]
[1743718392675,0.14216157,117.18,117.17,34.37170948]
[1743718398122,97.66359419,117.19,117.16,8.5353]
[1743718400023,0.14216157,117.14,117.13,8.5375]
[1743718400928,0.42648471,117.14,117.13,8.5375]
[1743718401519,0.42648471,117.14,117.12,8.5382]
[1743718402529,0.42648471,117.14,117.12,34.37530948]
[1743718404930,71.82648471,117.14,117.12,34.37530948]
[1743718405133,71.82648471,117.14,117.12,8.5382]
[1743718408732,71.82648471,117.14,117.11,46.43272474]
[1743718409334,71.82648471,117.14,117.11,25.08622474]
[1743718410910,71.82648471,117.14,117.11,8.5389]
[1743718414618,0.14216157,117.14,117.13,16.54732474]
[1743718415725,0.14216157,117.14,117.13,25.08482474]
[1743718416943,136.0,117.15,117.13,25.08482474]
[1743718417346,0.14216157,117.14,117.13,25.08482474]
[1743718417519,0.14216157,117.14,117.13,8.5375]
[1743718421132,71.29,117.16,117.13,29.8813]
[1743718421334,0.14216157,117.15,117.13,29.8813]
[1743718422751,0.42648471,117.15,117.13,8.5375]
[1743718425245,51.71648471,117.15,117.13,8.5375]
[1743718425748,51.71648471,117.15,117.12,8.5382]
[1743718426049,68.26380945,117.15,117.12,8.5382]
[1743718426751,0.28432314,117.13,117.12,8.5382]
[1743718427246,0.42648471,117.11,117.08,8.5411]
[1743718427749,0.28432314,117.09,117.08,8.5411]
[1743718428249,0.28432314,117.09,117.06,8.5426]
[1743718428636,0.28432314,117.09,117.06,25.08992474]
[1743718435255,0.28432314,117.07,117.06,8.5426]
[1743718436159,0.42648471,117.07,117.05,8.5433]
[1743718440166,51.71648471,117.07,117.05,8.5433]
[1743718440870,51.71648471,117.07,117.03,37.90852474]
[1743718441167,0.28432314,117.05,117.02,16.54732474]
[1743718441470,0.42648471,117.05,117.03,8.5448]
[1743718442466,0.42648471,117.05,117.03,25.09212474]
[1743718442768,0.14216157,117.06,117.04,16.54732474]
[1743718443967,0.14216157,117.06,117.05,8.5433]
[1743718445466,51.29,117.08,117.05,46.44892474]
[1743718445682,0.14216157,117.08,117.06,16.54732474]
[1743718445856,0.14216157,117.08,117.07,16.54732474]
[1743718446065,0.14216157,117.08,117.07,8.5418]
[1743718446365,0.42648471,117.1,117.07,46.44382474]
[1743718446761,51.71648471,117.1,117.07,29.8965]
[1743718447748,51.71648471,117.1,117.07,46.44382474]
[1743718447949,51.43216157,117.1,117.08,16.54732474]
[1743718448145,51.43216157,117.1,117.09,8.5404]
[1743718448351,51.71648471,117.1,117.09,8.5404]
[1743718448766,51.57432314,117.1,117.09,8.5404]
[1743718449074,51.71648471,117.1,117.09,8.5404]
[1743718449478,0.42648471,117.1,117.09,8.5404]
[1743718451091,0.28432314,117.09,117.06,8.5426]
[1743718451385,0.28432314,117.09,117.06,25.08992474]
[1743718452077,0.28432314,117.09,117.06,46.44642474]
[1743718453390,0.28432314,117.09,117.06,29.8991]
[1743718453572,0.28432314,117.09,117.06,46.44642474]
[1743718454586,0.14216157,117.1,117.08,8.5411]
[1743718454765,8.08648471,117.1,117.08,8.5411]
[1743718455495,8.08648471,117.1,117.09,26.0]
[1743718456910,8.08648471,117.1,117.09,34.5404]
[1743718458186,8.08648471,117.1,117.09,8.5404]
[1743718459161,8.08648471,117.1,117.08,8.5411]
[1743718459372,51.43216157,117.09,117.08,8.5411]
[1743718460486,0.14216157,117.09,117.07,29.8953]
[1743718461661,0.14216157,117.09,117.07,8.5418]
[1743718463090,0.14216157,117.09,117.08,26.0]
[1743718464691,0.14216157,117.08,117.06,16.54732474]
[1743718464895,0.14216157,117.09,117.06,16.54732474]
[1743718465280,0.14216157,117.09,117.07,8.5418]
[1743718466387,51.57432314,117.08,117.07,8.5418]
[1743718466590,0.14216157,117.05,117.03,37.90842474]
[1743718466789,0.14216157,117.05,117.04,8.544]
[1743718467285,0.14216157,117.05,117.04,26.0]
[1743718467993,0.14216157,117.03,117.02,29.9083]
[1743718473219,51.29,117.04,117.02,46.45562474]
[1743718473409,51.43216157,117.04,117.03,16.54732474]
[1743718475206,51.43216157,117.04,117.03,25.09212474]
[1743718476593,51.43216157,117.04,117.03,8.5448]
[1743718478213,51.43216157,117.04,117.03,25.09212474]
[1743718479207,51.43216157,117.04,117.03,8.5448]
[1743718483088,51.43216157,117.04,117.03,25.09212474]
[1743718486414,51.43216157,117.04,117.03,8.5448]
[1743718487416,51.71648471,117.04,117.03,8.5448]
[1743718492723,0.14216157,117.03,117.02,29.9083]
[1743718497730,0.14216157,117.03,117.02,16.54732474]
[1743718499732,0.14216157,117.03,117.02,25.09282474]
[1743718504631,51.29,117.04,117.02,25.09282474]
[1743718504838,51.43216157,117.04,117.03,16.54732474]
[1743718505016,0.14216157,117.07,117.06,26.0]
[1743718505213,0.14216157,117.1,117.06,42.54732474]
[1743718505410,0.14216157,117.1,117.07,16.54732474]
[1743718505614,0.14216157,117.1,117.08,16.54732474]
[1743718505814,137.6619,117.11,117.09,8.5404]
[1743718506014,106.91345831,117.1,117.06,26.0]
[1743718506217,106.91345831,117.1,117.05,16.54732474]
[1743718506218,71.71648471,117.08,117.05,8.5433]
[1743718506429,95.92380945,117.08,117.05,8.5433]
[1743718506930,79.37648471,117.08,117.05,29.9016]
[1743718507333,0.28432314,117.07,117.05,46.44892474]
[1743718507633,59.09216157,117.08,117.06,16.54732474]
[1743718507841,51.43216157,117.08,117.06,16.54732474]
[1743718508025,136.0,117.09,117.05,29.9016]
[1743718508026,0.14216157,117.09,117.07,46.44382474]
[1743718508338,0.14216157,117.1,117.08,16.54732474]
[1743718508836,0.42648471,117.1,117.07,46.44382474]
[1743718511311,0.42648471,117.08,117.07,8.5418]
[1743718511508,0.42648471,117.08,117.02,49.2207]
[1743718511509,51.43216157,117.07,117.06,8.542]
[1743718511741,0.28432314,117.06,117.05,26.0]
[1743718512041,51.29,117.07,117.05,26.0]
[1743718512235,0.14216157,117.06,117.05,42.54732474]
[1743718512533,0.14216157,117.06,117.05,16.54732474]
[1743718512743,0.14216157,117.06,117.04,29.9042]
[1743718512948,0.14216157,117.06,117.04,46.45152474]
[1743718513440,0.14216157,117.06,117.04,29.9042]
[1743718513615,0.14216157,117.06,117.04,46.45152474]
[1743718513815,0.14216157,117.06,117.05,16.54732474]
[1743718515035,0.42648471,117.06,117.05,8.5433]
[1743718515628,0.14216157,117.06,117.05,25.09062474]
[1743718516647,0.14216157,117.06,117.05,8.5433]
[1743718517850,0.14216157,117.06,117.05,25.09062474]
[1743718519941,7.94432314,117.08,117.05,46.44892474]
[1743718519942,7.66,117.08,117.05,46.44892474]
[1743718520244,51.29,117.1,117.07,16.54732474]
[1743718520435,0.14216157,117.09,117.08,16.54732474]
[1743718520944,0.14216157,117.1,117.08,16.54732474]
[1743718521144,0.14216157,117.12,117.09,42.54732474]
[1743718521339,0.14216157,117.12,117.1,25.08702474]
[1743718521541,0.14216157,117.14,117.11,16.54732474]
[1743718521852,0.28432314,117.13,117.1,46.43622474]
[1743718522623,0.28432314,117.13,117.11,16.54732474]
[1743718523125,0.28432314,117.13,117.1,46.43622474]
[1743718525352,0.28432314,117.13,117.11,16.54732474]
[1743718525853,0.28432314,117.13,117.1,46.43622474]
[1743718528363,0.14216157,117.14,117.11,16.54732474]
[1743718528649,0.14216157,117.14,117.12,16.54732474]
[1743718529229,0.14216157,117.14,117.13,42.54732474]
[1743718529427,207.56064886,117.18,117.13,42.54732474]
[1743718529630,0.14216157,117.17,117.15,42.54732474]
[1743718529827,0.14216157,117.17,117.16,8.5353]
[1743718530449,0.42648471,117.17,117.16,8.5353]
[1743718530641,0.14216157,117.17,117.16,8.5353]
[1743718530842,0.14216157,117.17,117.16,25.08262474]
[1743718531446,0.14216157,117.19,117.16,25.08262474]
[1743718531757,0.42648471,117.19,117.16,25.08262474]
[1743718531961,0.42648471,117.19,117.16,46.42092474]
[1743718532141,8.08648471,117.19,117.16,46.42092474]
[1743718533155,7.80216157,117.19,117.16,46.42092474]
[1743718533375,7.80216157,117.19,117.16,29.8736]
[1743718533671,7.80216157,117.19,117.16,46.42092474]
[1743718534556,0.28432314,117.18,117.16,8.5353]
[1743718539273,0.14216157,117.17,117.16,8.5353]
[1743718541556,0.14216157,117.17,117.15,26.0]
[1743718541863,0.28432314,117.16,117.14,8.5363]
[1743718547578,0.28432314,117.14,117.12,8.5379]
[1743718547748,0.28432314,117.12,117.11,8.5389]
[1743718547948,0.28432314,117.12,117.1,8.5397]
[1743718549454,59.07216157,117.11,117.09,8.5403]
[1743718549774,59.07216157,117.11,117.09,16.54732474]
[1743718551780,59.07216157,117.11,117.08,16.54732474]
[1743718552778,59.07216157,117.11,117.09,8.5404]
[1743718553566,0.28432314,117.1,117.09,8.5404]
[1743718553766,0.28432314,117.1,117.08,26.0]
[1743718555072,0.28432314,117.1,117.09,8.5404]
[1743718556279,7.78216157,117.11,117.09,8.5404]
[1743718556462,7.78216157,117.11,117.09,25.08772474]
[1743718557759,0.14216157,117.13,117.1,16.54732474]
[1743718557955,0.14216157,117.14,117.11,16.54732474]
[1743718558763,0.42648471,117.14,117.11,16.54732474]
[1743718559351,0.42648471,117.14,117.1,16.54732474]
[1743718559972,19.07613357,117.14,117.11,8.5389]
[1743718561759,26.71613357,117.14,117.11,8.5389]
[1743718564681,8.06648471,117.14,117.11,46.43362474]
[1743718564887,8.06648471,117.14,117.12,16.54732474]
[1743718565083,7.78216157,117.14,117.13,42.54732474]
[1743718565389,0.14216157,117.14,117.13,42.54732474]
[1743718566587,0.14216157,117.14,117.13,51.08482474]
[1743718567288,0.14216157,117.14,117.13,34.5375]
[1743718567471,86.91345831,117.14,117.13,8.5375]
[1743718567677,86.91345831,117.14,117.12,8.5378]
[1743718568888,86.91345831,117.14,117.09,46.43792474]
[1743718569588,16.83164788,117.11,117.09,8.5404]
[1743718569790,70.08181043,117.1,117.09,8.5404]
[1743718570183,51.71648471,117.1,117.09,8.5404]
[1743718571803,7.64,117.11,117.09,25.08772474]
[1743718572097,0.14216157,117.12,117.1,16.54732474]
[1743718572278,0.14216157,117.13,117.12,26.0]
[1743718572478,19.07613357,117.13,117.12,26.0]
[1743718572871,70.36613357,117.13,117.12,26.0]
[1743718573397,70.36613357,117.13,117.11,8.5385]
[1743718573689,86.91345831,117.13,117.11,8.5385]
[1743718574998,86.91345831,117.13,117.09,46.43872474]
[1743718574999,70.36613357,117.13,117.09,46.43872474]
[1743718575198,70.36613357,117.13,117.1,16.54732474]
[1743718575401,0.14216157,117.13,117.11,16.54732474]
[1743718576397,7.78216157,117.14,117.13,26.0]
[1743718577099,8.06648471,117.14,117.13,34.5375]
[1743718578007,78.00613357,117.14,117.13,26.0]
[1743718578289,70.36613357,117.13,117.1,8.5397]
[1743718578593,86.91345831,117.13,117.1,8.5397]
[1743718579191,70.36613357,117.13,117.09,46.43792474]
[1743718580686,70.36613357,117.13,117.09,8.5404]
[1743718580687,86.91345831,117.13,117.09,8.5404]
[1743718580995,0.28432314,117.1,117.09,8.5404]
[1743718581190,51.43216157,117.11,117.1,26.0]
[1743718581497,51.71648471,117.11,117.1,26.0]
[1743718582000,70.36613357,117.11,117.1,26.0]
[1743718584179,70.36613357,117.11,117.1,34.5397]
[1743718585587,0.28432314,117.1,117.09,8.54]
[1743718585986,0.28432314,117.1,117.08,8.5411]
[1743718587196,51.71648471,117.09,117.08,8.5411]
[1743718587400,0.42648471,117.09,117.08,8.5411]
[1743718588272,0.42648471,117.09,117.07,21.3538]
[1743718588501,0.42648471,117.09,117.07,37.90112474]
[1743718590382,0.42648471,117.09,117.07,46.44292474]
[1743718593381,77.57964886,117.1,117.07,46.44292474]
[1743718593382,136.28432314,117.12,117.08,16.54732474]
[1743718593601,0.14216157,117.13,117.11,16.54732474]
[1743718594114,0.28432314,117.14,117.12,16.54732474]
[1743718594415,26.43181043,117.15,117.12,16.54732474]
[1743718594716,0.28432314,117.14,117.13,8.5375]
[1743718594883,0.14216157,117.13,117.12,8.538]
[1743718595091,0.14216157,117.13,117.12,26.0]
[1743718595392,70.08181043,117.13,117.12,26.0]
[1743718596185,0.28432314,117.12,117.11,8.5385]
[1743718599089,51.57432314,117.12,117.1,8.5397]
[1743718599289,0.14216157,117.11,117.1,8.5397]
[1743718600010,0.14216157,117.11,117.09,16.54732474]
[1743718601605,0.14216157,117.11,117.1,26.0]
[1743718602112,0.14216157,117.11,117.1,34.5397]
[1743718602816,70.36613357,117.12,117.1,34.5397]
[1743718602991,86.91345831,117.12,117.1,34.5397]
[1743718603709,106.91345831,117.12,117.09,8.5401]
[1743718603889,7.64,117.11,117.08,8.5407]
[1743718604095,70.36613357,117.1,117.08,8.5407]
[1743718604407,70.36613357,117.1,117.07,8.5418]
[1743718604605,0.28432314,117.08,117.07,8.5418]
[1743718604795,70.36613357,117.08,117.07,26.0]
[1743718605000,86.91345831,117.08,117.05,8.5433]
[1743718605590,106.91345831,117.08,117.05,8.5433]
[1743718605788,0.28432314,117.06,117.05,8.5433]
[1743718607928,70.36613357,117.06,117.04,8.5437]
[1743718608218,70.36613357,117.06,117.03,8.5448]
[1743718609210,106.91345831,117.06,117.03,8.5448]
[1743718609407,16.54732474,117.05,117.03,8.5448]
[1743718609636,90.36613357,117.04,117.03,8.5448]
[1743718610320,90.36613357,117.04,117.03,26.0]
[1743718610617,106.91345831,117.04,117.01,8.5462]
[1743718610798,0.28432314,117.02,117.01,8.5462]
[1743718611717,0.14216157,117.02,117.01,8.5462]
[1743718612222,0.42648471,117.02,117.01,26.0]
[1743718614309,0.42648471,117.02,117.01,34.5462]
[1743718618336,106.91345831,117.02,117.0,8.5466]
[1743718618828,132.57345831,117.02,116.98,8.5484]
[1743718619128,70.08181043,116.99,116.98,8.5484]
[1743718619379,0.14216157,116.99,116.98,8.5484]
[1743718619662,0.14216157,117.0,116.98,46.46682474]
[1743718619963,70.36613357,117.0,116.98,8.5484]
[1743718620962,70.36613357,117.0,116.99,26.0]
[1743718624761,70.08181043,116.98,116.97,8.5488]
[1743718624940,70.36613357,116.98,116.96,8.5499]
[1743718625140,0.28432314,116.97,116.96,8.5499]
[1743718626267,71.71648471,116.97,116.96,8.5499]
[1743718626438,0.28432314,116.95,116.92,21.3814]
[1743718626646,0.28432314,116.95,116.93,16.54732474]
[1743718627873,0.28432314,116.95,116.94,8.5513]
[1743718628369,78.00613357,116.95,116.94,8.5513]
[1743718628866,98.00613357,116.95,116.94,8.5513]
[1743718629074,18.79181043,116.94,116.91,8.5535]
[1743718629269,0.28432314,116.93,116.91,8.5535]
[1743718629844,0.28432314,116.93,116.91,25.10082474]
[1743718630056,0.28432314,116.93,116.91,8.5535]
[1743718631174,0.28432314,116.91,116.9,8.5543]
[1743718632346,0.28432314,116.91,116.89,8.555]
[1743718632959,20.28432314,116.91,116.89,8.555]
[1743718633165,0.28432314,116.89,116.88,8.5557]
[1743718636256,0.14216157,116.9,116.88,25.10302474]
[1743718636583,77.57964886,116.92,116.91,26.0]
[1743718636764,77.57964886,116.92,116.9,16.54732474]
[1743718636955,1.6017,116.94,116.9,16.54732474]
[1743718637159,7.66,116.93,116.92,26.0]
[1743718637383,7.66,116.93,116.92,51.10012474]
[1743718637680,0.28432314,116.93,116.92,51.10012474]
[1743718637984,7.66,116.96,116.92,51.10012474]
[1743718638167,7.66,116.96,116.94,16.54732474]
[1743718638355,0.42648471,116.95,116.94,16.54732474]
[1743718638986,0.14216157,116.95,116.94,25.09862474]
[1743718639189,0.14216157,116.95,116.94,8.5513]
[1743718639390,0.42648471,116.95,116.94,8.5513]
[1743718639856,70.36613357,116.95,116.94,8.5513]
[1743718640057,116.02613357,116.95,116.94,8.5513]
[1743718640270,90.36613357,116.95,116.94,8.5513]
[1743718640468,0.14216157,116.95,116.94,34.49046936]
[1743718641564,51.29,116.99,116.94,34.49046936]
[1743718641768,51.29,117.0,116.97,25.93916936]
[1743718641973,58.95,117.0,116.98,25.93916936]
[1743718642168,51.29,117.0,116.99,25.93916936]
[1743718642568,7.66,117.02,116.99,25.93916936]
[1743718642892,7.66,117.02,116.94,106.72366936]
[1743718642893,0.28432314,117.01,117.0,25.93916936]
[1743718643190,0.28432314,117.01,116.99,25.93916936]
[1743718643191,18.933972,117.01,116.99,25.93916936]
[1743718643396,70.223972,117.01,117.0,8.547]
[1743718643695,70.36613357,117.01,117.0,8.547]
[1743718644183,19.07613357,117.01,117.0,8.547]
[1743718645387,0.14216157,117.03,117.0,55.85366936]
[1743718645615,0.14216157,117.03,117.02,25.93916936]
[1743718646678,0.28432314,117.02,117.0,55.85366936]
[1743718646901,0.42648471,117.02,117.0,34.48616936]
[1743718647585,18.79181043,117.01,117.0,8.547]
[1743718650125,18.79181043,117.01,116.96,21.3741]
[1743718650126,0.42648471,117.0,116.96,21.3741]
[1743718650293,0.28432314,116.98,116.97,25.93916936]
[1743718650621,0.42648471,117.0,116.97,25.93916936]
[1743718650786,0.42648471,117.0,116.99,25.93916936]
[1743718650787,0.14216157,117.0,116.99,25.93916936]
[1743718651188,0.14216157,117.02,116.99,25.93916936]
[1743718651392,18.79181043,117.01,116.99,26.0]
[1743718651617,19.07613357,117.01,116.98,25.93916936]
[1743718651821,0.28432314,117.0,116.99,8.5477]
[1743718652020,7.92432314,117.0,116.98,8.5482]
[1743718652223,18.79181043,116.99,116.98,8.5482]
[1743718652521,0.42648471,116.99,116.98,34.48736936]
[1743718652698,0.14216157,116.99,116.98,34.48736936]
[1743718653098,19.07613357,116.99,116.98,8.5482]
[1743718653301,0.14216157,116.99,116.98,34.48736936]
[1743718653707,7.64,117.0,116.98,34.48736936]
[1743718654014,7.78216157,117.0,116.99,25.93916936]
[1743718654207,0.14216157,117.0,116.99,25.93916936]
[1743718655794,0.14216157,117.0,116.99,34.48686936]
[1743718659419,70.36613357,117.0,116.99,8.5477]
[1743718659921,70.36613357,117.0,116.98,8.5482]
[1743718660825,51.57432314,117.0,116.99,26.0]
[1743718661011,0.14216157,116.99,116.98,25.93916936]
[1743718661719,0.14216157,116.99,116.98,16.58577697]
[1743718662215,136.0,117.02,116.98,16.58577697]
[1743718662216,187.29,117.02,116.98,16.58577697]
[1743718662523,0.14216157,117.01,117.0,16.58577697]
[1743718663016,0.42648471,117.01,117.0,8.547]
[1743718663825,90.36613357,117.01,116.97,34.46424185]
[1743718664203,116.28117542,117.01,116.97,8.5492]
[1743718664617,70.08181043,116.99,116.97,8.5492]
[1743718664800,0.28432314,116.98,116.97,8.5492]
[1743718665523,70.36613357,116.98,116.97,8.5492]
[1743718665918,70.08181043,116.97,116.96,8.5499]
[1743718666229,0.14216157,116.97,116.96,34.46494185]
[1743718666407,0.14216157,116.98,116.96,55.83974185]
[1743718666603,0.14216157,116.98,116.97,25.91504185]
[1743718667302,0.14216157,116.98,116.97,34.46424185]
[1743718670718,7.64,116.99,116.97,34.46424185]
[1743718670918,7.64,116.99,116.97,25.91504185]
[1743718671117,0.14216157,116.98,116.96,47.28984185]
[1743718672633,0.42648471,116.98,116.96,47.28984185]
[1743718672831,0.42648471,116.98,116.96,55.83974185]
[1743718673442,0.42648471,116.98,116.96,29.9247]
[1743718673626,0.42648471,116.98,116.96,55.83974185]
[1743718674413,0.14216157,116.98,116.97,25.91504185]
[1743718676041,0.14216157,116.98,116.96,55.83974185]
[1743718677841,0.42648471,116.98,116.96,55.83974185]
[1743718682857,0.14216157,116.98,116.97,25.91504185]
[1743718683138,136.0,117.01,116.97,25.91504185]
[1743718683343,7.78216157,117.04,117.0,25.91504185]
[1743718683642,18.933972,117.03,117.0,25.91504185]
[1743718684026,70.223972,117.03,117.01,8.5462]
[1743718684229,0.14216157,117.02,117.01,8.5462]
[1743718684424,70.08181043,117.0,116.98,8.5484]
[1743718684622,0.28432314,116.99,116.97,8.5488]
[1743718684824,0.28432314,116.99,116.96,8.5495]
[1743718685550,51.57432314,116.99,116.96,8.5495]
[1743718685923,0.28432314,116.97,116.96,8.5495]
[1743718686345,51.43216157,116.98,116.96,34.46454185]
[1743718686542,0.28432314,116.97,116.96,25.91504185]
[1743718686849,0.28432314,116.97,116.95,34.46534185]
[1743718687019,18.933972,116.97,116.95,34.46534185]
[1743718687225,70.223972,116.97,116.94,34.46604185]
[1743718687547,70.223972,116.97,116.94,8.551]
[1743718688367,0.14216157,116.94,116.91,25.91504185]
[1743718688525,90.36613357,116.92,116.88,34.47074185]
[1743718688724,90.36613357,116.92,116.87,34.47114185]
[1743718688725,0.28432314,116.89,116.87,34.47114185]
[1743718688938,0.28432314,116.89,116.86,34.47194185]
[1743718689144,51.43216157,116.9,116.88,25.91504185]
[1743718689351,0.42648471,116.9,116.89,25.91504185]
[1743718689942,0.42648471,116.9,116.88,25.91504185]
[1743718690252,0.42648471,116.9,116.84,6.3686]
[1743718690253,7.64,116.91,116.89,34.47004185]
[1743718690438,51.37,116.92,116.89,8.555]
[1743718690627,51.37,116.92,116.89,25.91504185]
[1743718690628,0.28432314,116.91,116.89,25.91504185]
[1743718691142,0.28432314,116.91,116.89,34.46974185]
[1743718691355,0.28432314,116.91,116.89,8.5547]
[1743718691533,0.28432314,116.91,116.89,34.46974185]
[1743718693650,0.28432314,116.91,116.9,25.91504185]
[1743718693952,0.28432314,116.93,116.9,25.91504185]
[1743718694252,0.14216157,116.93,116.92,25.91504185]
[1743718694628,0.14216157,116.95,116.92,25.91504185]
[1743718694855,0.14216157,116.95,116.94,25.91504185]
[1743718695157,0.28432314,116.94,116.91,25.91504185]
[1743718696052,0.28432314,116.94,116.92,8.5528]
[1743718697931,0.28432314,116.94,116.92,34.46784185]
[1743718698961,0.28432314,116.94,116.92,8.5528]
[1743718699137,0.28432314,116.94,116.92,34.46784185]
[1743718702843,0.28432314,116.94,116.92,8.5528]
[1743718703769,0.28432314,116.94,116.91,34.46824185]
[1743718704271,0.28432314,116.94,116.91,55.85214185]
[1743718705168,25.94432314,116.94,116.91,55.85214185]
[1743718705862,0.28432314,116.94,116.91,55.85214185]
[1743718707748,0.28432314,116.94,116.91,46.54280306]
[1743718709978,0.28432314,116.94,116.92,16.60570306]
[1743718710173,0.28432314,116.94,116.93,16.60570306]
[1743718710852,0.28432314,116.94,116.93,25.15780306]
[1743718711665,18.79181043,116.96,116.93,25.15780306]
[1743718711990,18.79181043,116.96,116.94,16.60570306]
[1743718711991,0.14216157,116.96,116.94,16.60570306]
[1743718712355,0.28432314,116.96,116.94,16.60570306]
[1743718712887,18.933972,116.96,116.93,25.15780306]
[1743718713077,0.14216157,116.95,116.93,25.15780306]
[1743718713779,0.14216157,116.95,116.94,16.60570306]
[1743718714400,51.65432314,116.95,116.94,25.15700306]
[1743718715801,0.14216157,116.94,116.9,72.7081]
[1743718716003,0.14216157,116.94,116.93,16.60570306]
[1743718717195,0.14216157,116.94,116.93,25.15780306]
[1743718718391,8.06648471,116.94,116.92,8.5524]
[1743718718600,0.14216157,116.93,116.92,8.5524]
[1743718719493,0.14216157,116.93,116.91,8.5535]
[1743718722116,0.14216157,116.93,116.91,25.15920306]
[1743718722420,59.29432314,116.94,116.92,16.60570306]
[1743718722582,0.42648471,116.94,116.93,16.60570306]
[1743718723082,0.42648471,116.94,116.92,16.60570306]
[1743718723714,143.64,116.96,116.93,46.53810306]
[1743718724013,143.64,116.96,116.94,16.60570306]
[1743718725902,7.78216157,116.96,116.95,8.5506]
[1743718726604,70.44613357,116.95,116.92,8.5528]
[1743718726794,107.05183663,116.95,116.92,8.5528]
[1743718727506,243.05183663,116.95,116.89,29.942]
[1743718727712,0.28432314,116.92,116.89,8.555]
[1743718727886,59.29432314,116.92,116.89,8.555]
[1743718728088,75.9000262,116.92,116.89,8.555]
[1743718728286,59.29432314,116.92,116.89,8.555]
[1743718733089,63.64367683,116.92,116.89,8.555]
[1743718733714,0.28432314,116.9,116.88,8.5553]
[1743718734015,0.42648471,116.91,116.88,55.90485388]
[1743718735524,0.14216157,116.91,116.89,25.96015388]
[1743718735742,0.14216157,116.91,116.9,34.51445388]
[1743718736217,0.14216157,116.91,116.9,8.5543]
[1743718737300,19.07613357,116.92,116.9,8.5543]
[1743718737817,97.93258745,116.92,116.89,8.555]
[1743718740326,97.93258745,116.92,116.89,55.90275388]
[1743718740327,0.42648471,116.91,116.89,55.90275388]
[1743718742019,0.42648471,116.91,116.9,25.96015388]
[1743718742629,0.14216157,116.91,116.9,25.96015388]
[1743718744014,0.14216157,116.91,116.9,34.51445388]
[1743718744637,0.14216157,116.91,116.9,8.5543]